[Event "*** SCC Grand Prix: Titled Tuesday Blitz"]
[Site "Chess.com"]
[Date "2020.06.09"]
[Round "9"]
[White "sasko1234"]
[Black "Rodalquilar"]
[Result "0-1"]
[WhiteElo "2476"]
[BlackElo "2636"]
[TimeControl "180+1"]
[EndTime "10:45:17 PDT"]
[Termination "Rodalquilar won by resignation"]

1. b3 {[%clk 0:03:00.9]} 1... d5 {[%clk 0:02:59.3]} 2. Bb2 {[%clk 0:03:00.8]}
2... Bf5 {[%clk 0:02:59.3]} 3. e3 {[%clk 0:03:00.7]} 3... e6 {[%clk 0:02:59.8]}
4. f4 {[%clk 0:03:00.8]} 4... c5 {[%clk 0:02:55.8]} 5. Nf3 {[%clk 0:03:00.8]}
5... Nc6 {[%clk 0:02:56.3]} 6. Bb5 {[%clk 0:02:59.6]} 6... Qc7 {[%clk
0:02:53.4]} 7. Ne5 {[%clk 0:02:57.9]} 7... f6 {[%clk 0:02:50.1]} 8. Nxc6 {[%clk
0:02:55.3]} 8... bxc6 {[%clk 0:02:49.4]} 9. Be2 {[%clk 0:02:54.8]} 9... Bd6
{[%clk 0:02:48.9]} 10. O-O {[%clk 0:02:52.8]} 10... Ne7 {[%clk 0:02:48.7]} 11.
Bg4 {[%clk 0:02:45]} 11... O-O {[%clk 0:02:47.4]} 12. Bxf5 {[%clk 0:02:44.9]}
12... Nxf5 {[%clk 0:02:47.8]} 13. Nc3 {[%clk 0:02:28.4]} 13... e5 {[%clk
0:02:47.5]} 14. fxe5 {[%clk 0:02:23.9]} 14... fxe5 {[%clk 0:02:48.4]} 15. e4
{[%clk 0:02:13.9]} 15... Ne7 {[%clk 0:02:48.5]} 16. Qg4 {[%clk 0:02:08]} 16...
d4 {[%clk 0:02:37.8]} 17. Qe6+ {[%clk 0:01:40.8]} 17... Kh8 {[%clk 0:02:37.7]}
18. Ne2 {[%clk 0:01:33.7]} 18... Ng6 {[%clk 0:02:37.8]} 19. d3 {[%clk 0:01:13]}
19... Rfe8 {[%clk 0:02:25.3]} 20. Qg4 {[%clk 0:01:07.5]} 20... Qb6 {[%clk
0:02:09.2]} 21. Bc1 {[%clk 0:00:59.8]} 21... a5 {[%clk 0:01:53.3]} 22. a4 {[%clk
0:00:58.8]} 22... Qb4 {[%clk 0:01:30.8]} 23. Rd1 {[%clk 0:00:50.6]} 23... Rf8
{[%clk 0:01:24.3]} 24. Bd2 {[%clk 0:00:50.5]} 24... Qb7 {[%clk 0:01:24.5]} 25.
Rf1 {[%clk 0:00:50.2]} 25... c4 {[%clk 0:01:11.4]} 26. dxc4 {[%clk 0:00:42.1]}
26... d3 {[%clk 0:01:11.2]} 27. cxd3 {[%clk 0:00:39.7]} 27... Qxb3 {[%clk
0:01:11.2]} 28. Rxf8+ {[%clk 0:00:08.2]} 28... Rxf8 {[%clk 0:01:09]} 29. Nc1
{[%clk 0:00:08.8]} 29... Bc5+ {[%clk 0:01:04.6]} 0-1

[Event "*** SCC Grand Prix: Titled Tuesday Blitz"]
[Site "Chess.com"]
[Date "2020.06.09"]
[Round "9"]
[White "elohunter1999"]
[Black "oskariot"]
[Result "0-1"]
[WhiteElo "2497"]
[BlackElo "2653"]
[TimeControl "180+1"]
[EndTime "10:45:18 PDT"]
[Termination "oskariot won by resignation"]

1. e4 {[%clk 0:03:00.9]} 1... c5 {[%clk 0:02:54.4]} 2. Nf3 {[%clk 0:03:00.4]}
2... d6 {[%clk 0:02:54.9]} 3. Bb5+ {[%clk 0:02:59.5]} 3... Nd7 {[%clk
0:02:54.4]} 4. a4 {[%clk 0:02:58.3]} 4... a6 {[%clk 0:02:54]} 5. Be2 {[%clk
0:02:54.8]} 5... Ngf6 {[%clk 0:02:53.4]} 6. Nc3 {[%clk 0:02:54.2]} 6... b6
{[%clk 0:02:53.2]} 7. d4 {[%clk 0:02:50.6]} 7... cxd4 {[%clk 0:02:54]} 8. Qxd4
{[%clk 0:02:51.2]} 8... e5 {[%clk 0:02:50.2]} 9. Qe3 {[%clk 0:02:48.8]} 9... Bb7
{[%clk 0:02:49.3]} 10. O-O {[%clk 0:02:48.6]} 10... Be7 {[%clk 0:02:49.5]} 11.
Nd2 {[%clk 0:02:15.2]} 11... O-O {[%clk 0:02:48.1]} 12. Rd1 {[%clk 0:02:15.3]}
12... Qc7 {[%clk 0:02:39]} 13. Nc4 {[%clk 0:02:11.1]} 13... Rad8 {[%clk
0:02:21.8]} 14. f3 {[%clk 0:01:58.9]} 14... d5 {[%clk 0:02:14.3]} 15. Qd3 {[%clk
0:00:56.7]} 15... Nc5 {[%clk 0:02:00.8]} 16. Qe3 {[%clk 0:00:50.5]} 16... dxc4
{[%clk 0:02:00.1]} 17. Rxd8 {[%clk 0:00:46.3]} 17... Rxd8 {[%clk 0:01:59.6]} 18.
Bxc4 {[%clk 0:00:46.6]} 18... Ne6 {[%clk 0:01:59.9]} 19. Qe2 {[%clk 0:00:44.6]}
19... Nd4 {[%clk 0:01:59.5]} 20. Qf1 {[%clk 0:00:43.4]} 20... Nxc2 {[%clk
0:01:59.3]} 21. Rb1 {[%clk 0:00:43.5]} 21... Bc5+ {[%clk 0:01:49.1]} 22. Kh1
{[%clk 0:00:43]} 22... Ne3 {[%clk 0:01:49.1]} 23. Bxe3 {[%clk 0:00:42.4]} 23...
Bxe3 {[%clk 0:01:50]} 24. b3 {[%clk 0:00:39.3]} 24... g6 {[%clk 0:01:44.6]} 25.
Rd1 {[%clk 0:00:35.5]} 25... Rxd1 {[%clk 0:01:43.6]} 26. Qxd1 {[%clk 0:00:36.4]}
26... Kg7 {[%clk 0:01:42.7]} 27. g3 {[%clk 0:00:29.7]} 27... h5 {[%clk
0:01:42.3]} 28. h4 {[%clk 0:00:29.7]} 28... Qd7 {[%clk 0:01:41.4]} 29. Qxd7
{[%clk 0:00:29.2]} 29... Nxd7 {[%clk 0:01:42.3]} 30. Kg2 {[%clk 0:00:28.1]}
30... Bd4 {[%clk 0:01:41.5]} 31. Ne2 {[%clk 0:00:27.1]} 31... f5 {[%clk
0:01:35.4]} 32. exf5 {[%clk 0:00:21.9]} 32... gxf5 {[%clk 0:01:36.3]} 33. Be6
{[%clk 0:00:22.6]} 33... Nc5 {[%clk 0:01:34.7]} 34. Bxf5 {[%clk 0:00:22.9]}
34... Nxb3 {[%clk 0:01:34.9]} 35. Bc2 {[%clk 0:00:18.6]} 35... Nc5 {[%clk
0:01:33]} 36. Bd1 {[%clk 0:00:13.1]} 36... b5 {[%clk 0:01:31.7]} 37. axb5 {[%clk
0:00:12.2]} 37... axb5 {[%clk 0:01:32.6]} 38. Nxd4 {[%clk 0:00:11.4]} 38... exd4
{[%clk 0:01:32.5]} 39. Kf2 {[%clk 0:00:12.2]} 39... b4 {[%clk 0:01:32.7]} 40. g4
{[%clk 0:00:12.6]} 40... b3 {[%clk 0:01:32.2]} 41. Ke2 {[%clk 0:00:11.2]} 41...
b2 {[%clk 0:01:29.8]} 42. Bc2 {[%clk 0:00:10.6]} 42... d3+ {[%clk 0:01:30.4]}
43. Bxd3 {[%clk 0:00:10.9]} 43... Nxd3 {[%clk 0:01:31.3]} 0-1

[Event "*** SCC Grand Prix: Titled Tuesday Blitz"]
[Site "Chess.com"]
[Date "2020.06.09"]
[Round "9"]
[White "MuhittinBuker"]
[Black "GoValya"]
[Result "1-0"]
[WhiteElo "1912"]
[BlackElo "2160"]
[TimeControl "180+1"]
[EndTime "10:45:24 PDT"]
[Termination "MuhittinBuker won on time"]

1. d4 {[%clk 0:03:00.9]} 1... g6 {[%clk 0:02:55.2]} 2. c4 {[%clk 0:03:00.8]}
2... Bg7 {[%clk 0:02:54.8]} 3. Nc3 {[%clk 0:03:01.3]} 3... c5 {[%clk 0:02:47.8]}
4. e3 {[%clk 0:03:00.4]} 4... cxd4 {[%clk 0:02:45.5]} 5. exd4 {[%clk 0:03:00.4]}
5... d6 {[%clk 0:02:44.5]} 6. Be2 {[%clk 0:02:57.4]} 6... Nc6 {[%clk 0:02:42.5]}
7. Nf3 {[%clk 0:02:56.7]} 7... Nf6 {[%clk 0:02:41.5]} 8. O-O {[%clk 0:02:55.7]}
8... O-O {[%clk 0:02:41]} 9. Re1 {[%clk 0:02:53.6]} 9... Bf5 {[%clk 0:02:39.8]}
10. a3 {[%clk 0:02:52.4]} 10... Rc8 {[%clk 0:02:39.1]} 11. h3 {[%clk 0:02:50.2]}
11... Ne4 {[%clk 0:02:35.2]} 12. Nxe4 {[%clk 0:02:44.1]} 12... Bxe4 {[%clk
0:02:34.5]} 13. Be3 {[%clk 0:02:44.4]} 13... d5 {[%clk 0:02:32.3]} 14. c5 {[%clk
0:02:42.3]} 14... e5 {[%clk 0:02:16.2]} 15. dxe5 {[%clk 0:02:38.2]} 15... Nxe5
{[%clk 0:02:14.6]} 16. Nxe5 {[%clk 0:02:38.3]} 16... Bxe5 {[%clk 0:02:07.1]} 17.
Bd4 {[%clk 0:02:38.6]} 17... Qf6 {[%clk 0:01:57.9]} 18. Bxe5 {[%clk 0:02:33.4]}
18... Qxe5 {[%clk 0:01:57.1]} 19. b4 {[%clk 0:02:30.6]} 19... Rfd8 {[%clk
0:01:46.4]} 20. Bf3 {[%clk 0:02:28.3]} 20... f5 {[%clk 0:01:43.9]} 21. Qd2
{[%clk 0:02:05.2]} 21... d4 {[%clk 0:01:30.7]} 22. Rad1 {[%clk 0:02:01.6]} 22...
d3 {[%clk 0:01:24.2]} 23. Re3 {[%clk 0:01:54.9]} 23... Qd4 {[%clk 0:01:10]} 24.
Bxe4 {[%clk 0:01:48.8]} 24... fxe4 {[%clk 0:01:00.6]} 25. Kh1 {[%clk 0:01:48.2]}
25... a5 {[%clk 0:00:41.8]} 26. f3 {[%clk 0:01:33.2]} 26... axb4 {[%clk
0:00:29.6]} 27. axb4 {[%clk 0:01:32.4]} 27... exf3 {[%clk 0:00:16.8]} 28. Rxf3
{[%clk 0:01:28.1]} 28... Qc4 {[%clk 0:00:16.1]} 29. Rxd3 {[%clk 0:01:26.6]}
29... Rxd3 {[%clk 0:00:15.6]} 30. Qxd3 {[%clk 0:01:26.9]} 30... Qxb4 {[%clk
0:00:15.7]} 31. Qd5+ {[%clk 0:01:20.6]} 31... Kg7 {[%clk 0:00:14.8]} 32. Qe5+
{[%clk 0:01:19.9]} 32... Kg8 {[%clk 0:00:14.2]} 33. Rd7 {[%clk 0:01:15.8]} 33...
Qb1+ {[%clk 0:00:07.6]} 34. Kh2 {[%clk 0:01:15.7]} 1-0

[Event "*** SCC Grand Prix: Titled Tuesday Blitz"]
[Site "Chess.com"]
[Date "2020.06.09"]
[Round "9"]
[White "Dmitry_Konenkin"]
[Black "i_am_sankalp"]
[Result "0-1"]
[WhiteElo "2356"]
[BlackElo "2214"]
[TimeControl "180+1"]
[EndTime "10:45:27 PDT"]
[Termination "i_am_sankalp won by resignation"]

1. e4 {[%clk 0:03:00.9]} 1... e5 {[%clk 0:02:56.4]} 2. Nc3 {[%clk 0:02:58.2]}
2... Nc6 {[%clk 0:02:50.4]} 3. g3 {[%clk 0:02:55.9]} 3... Bc5 {[%clk 0:02:47.1]}
4. Bg2 {[%clk 0:02:55.5]} 4... d6 {[%clk 0:02:47]} 5. Nge2 {[%clk 0:02:55.5]}
5... h5 {[%clk 0:02:45.7]} 6. h3 {[%clk 0:02:49.8]} 6... Be6 {[%clk 0:02:43.1]}
7. O-O {[%clk 0:02:49.6]} 7... Qd7 {[%clk 0:02:40.9]} 8. Kh2 {[%clk 0:02:49.5]}
8... Nge7 {[%clk 0:02:40.2]} 9. f4 {[%clk 0:02:48.9]} 9... h4 {[%clk 0:02:33.2]}
10. f5 {[%clk 0:02:43.7]} 10... hxg3+ {[%clk 0:02:32.7]} 11. Nxg3 {[%clk
0:02:44.2]} 11... Bc4 {[%clk 0:02:29.5]} 12. d3 {[%clk 0:02:44.5]} 12... Ba6
{[%clk 0:02:29.4]} 13. a3 {[%clk 0:02:40]} 13... O-O-O {[%clk 0:02:14]} 14. b4
{[%clk 0:02:09]} 14... Bd4 {[%clk 0:02:12.9]} 15. Nge2 {[%clk 0:02:09.3]} 15...
g6 {[%clk 0:01:25.8]} 16. Bg5 {[%clk 0:02:01.9]} 16... Rh5 {[%clk 0:01:17.9]}
17. Qd2 {[%clk 0:01:30.3]} 17... Rdh8 {[%clk 0:01:15]} 18. b5 {[%clk 0:01:22.5]}
18... gxf5 {[%clk 0:00:59.1]} 19. bxa6 {[%clk 0:01:05.9]} 19... f4 {[%clk
0:00:57.8]} 20. axb7+ {[%clk 0:01:05.3]} 20... Kb8 {[%clk 0:00:57.9]} 21. Rf3
{[%clk 0:00:20.8]} 21... Rxg5 {[%clk 0:00:54.9]} 22. Rb1 {[%clk 0:00:20.1]}
22... Ng6 {[%clk 0:00:52.3]} 23. Nd5 {[%clk 0:00:13.8]} 23... Rxg2+ {[%clk
0:00:49.5]} 24. Kxg2 {[%clk 0:00:11.4]} 24... Nh4+ {[%clk 0:00:49.7]} 25. Kf1
{[%clk 0:00:09.6]} 25... Nxf3 {[%clk 0:00:49.1]} 0-1

[Event "*** SCC Grand Prix: Titled Tuesday Blitz"]
[Site "Chess.com"]
[Date "2020.06.09"]
[Round "9"]
[White "GMJustin"]
[Black "earling8018"]
[Result "0-1"]
[WhiteElo "2281"]
[BlackElo "2093"]
[TimeControl "180+1"]
[EndTime "10:45:30 PDT"]
[Termination "earling8018 won on time"]

1. d4 {[%clk 0:02:57.4]} 1... d5 {[%clk 0:02:58.7]} 2. c4 {[%clk 0:02:50.3]}
2... e6 {[%clk 0:02:59.6]} 3. Nc3 {[%clk 0:02:49.9]} 3... c5 {[%clk 0:02:58.1]}
4. e3 {[%clk 0:02:21.7]} 4... Nf6 {[%clk 0:02:55.6]} 5. Nf3 {[%clk 0:02:10.5]}
5... Nc6 {[%clk 0:02:54.7]} 6. a3 {[%clk 0:01:56.8]} 6... a6 {[%clk 0:02:54.4]}
7. dxc5 {[%clk 0:01:51.3]} 7... Bxc5 {[%clk 0:02:53.6]} 8. b4 {[%clk 0:01:50.7]}
8... Bd6 {[%clk 0:02:49.6]} 9. cxd5 {[%clk 0:01:48.6]} 9... exd5 {[%clk
0:02:48.4]} 10. Bb2 {[%clk 0:01:48.2]} 10... O-O {[%clk 0:02:47.8]} 11. Be2
{[%clk 0:01:45.1]} 11... Be6 {[%clk 0:02:07.1]} 12. O-O {[%clk 0:01:41.8]} 12...
Qe7 {[%clk 0:02:07.1]} 13. Nd4 {[%clk 0:01:35]} 13... Ne5 {[%clk 0:01:57.9]} 14.
h3 {[%clk 0:00:32.6]} 14... Rac8 {[%clk 0:01:57.2]} 15. Na4 {[%clk 0:00:19.2]}
15... Nc4 {[%clk 0:01:39.4]} 16. Bxc4 {[%clk 0:00:17.7]} 16... Rxc4 {[%clk
0:01:37.1]} 17. Nxe6 {[%clk 0:00:15.6]} 17... Qxe6 {[%clk 0:01:31.9]} 18. Bd4
{[%clk 0:00:14.1]} 18... Nd7 {[%clk 0:01:25.2]} 19. Nb2 {[%clk 0:00:09.7]} 19...
Rc7 {[%clk 0:01:23.7]} 20. Rc1 {[%clk 0:00:09.1]} 20... Rfc8 {[%clk 0:01:23.6]}
21. Rxc7 {[%clk 0:00:08.6]} 21... Rxc7 {[%clk 0:01:24.3]} 22. Qd2 {[%clk
0:00:07.5]} 22... Ne5 {[%clk 0:01:23.6]} 23. Rc1 {[%clk 0:00:06.9]} 23... Nc4
{[%clk 0:01:21.7]} 24. Nxc4 {[%clk 0:00:06.4]} 24... dxc4 {[%clk 0:01:19.3]} 25.
f3 {[%clk 0:00:06]} 25... b5 {[%clk 0:01:17.8]} 26. e4 {[%clk 0:00:05.8]} 26...
h6 {[%clk 0:01:11]} 27. Qe3 {[%clk 0:00:05.6]} 27... Be5 {[%clk 0:01:04.9]} 28.
Bc3 {[%clk 0:00:03.3]} 28... Qf6 {[%clk 0:01:02.6]} 29. Rc2 {[%clk 0:00:02.1]}
29... Rd7 {[%clk 0:00:59.4]} 0-1

[Event "*** SCC Grand Prix: Titled Tuesday Blitz"]
[Site "Chess.com"]
[Date "2020.06.09"]
[Round "9"]
[White "lucachess49"]
[Black "RestartingChess"]
[Result "0-1"]
[WhiteElo "2343"]
[BlackElo "2482"]
[TimeControl "180+1"]
[EndTime "10:45:33 PDT"]
[Termination "RestartingChess won on time"]

1. d4 {[%clk 0:03:00.9]} 1... Nf6 {[%clk 0:03:00.3]} 2. c4 {[%clk 0:02:59.8]}
2... g6 {[%clk 0:03:00.2]} 3. f3 {[%clk 0:02:59.5]} 3... Bg7 {[%clk 0:03:00.7]}
4. e4 {[%clk 0:02:54.6]} 4... d6 {[%clk 0:03:01.2]} 5. Ne2 {[%clk 0:02:54.1]}
5... O-O {[%clk 0:03:01.6]} 6. Nbc3 {[%clk 0:02:54]} 6... c5 {[%clk 0:03:01.9]}
7. Be3 {[%clk 0:02:51.2]} 7... cxd4 {[%clk 0:03:01.7]} 8. Nxd4 {[%clk
0:02:51.1]} 8... Nc6 {[%clk 0:03:02.6]} 9. Qd2 {[%clk 0:02:51.3]} 9... Be6
{[%clk 0:03:02.9]} 10. Be2 {[%clk 0:02:48.5]} 10... Rc8 {[%clk 0:03:02.7]} 11.
O-O {[%clk 0:02:48]} 11... Nxd4 {[%clk 0:03:02.9]} 12. Bxd4 {[%clk 0:02:40.7]}
12... Bxc4 {[%clk 0:03:03.2]} 13. Bxc4 {[%clk 0:02:40.5]} 13... Rxc4 {[%clk
0:03:04.1]} 14. Bxa7 {[%clk 0:02:40.2]} 14... b6 {[%clk 0:03:04.4]} 15. Qf2
{[%clk 0:02:33.7]} 15... Nd7 {[%clk 0:03:04.7]} 16. Nd5 {[%clk 0:02:28.8]} 16...
Bd4 {[%clk 0:03:04.6]} 17. Ne3 {[%clk 0:02:26.7]} 17... Ra4 {[%clk 0:03:02.7]}
18. Rfd1 {[%clk 0:01:55.1]} 18... e5 {[%clk 0:03:02.1]} 19. f4 {[%clk
0:01:43.5]} 19... Rxa7 {[%clk 0:03:01.7]} 20. f5 {[%clk 0:01:40.3]} 20... Qg5
{[%clk 0:03:01.4]} 21. Rxd4 {[%clk 0:01:39.3]} 21... exd4 {[%clk 0:03:00.5]} 22.
Nd5 {[%clk 0:01:39.5]} 22... Nf6 {[%clk 0:02:55.6]} 23. h4 {[%clk 0:01:36.5]}
23... Nxe4 {[%clk 0:02:42.8]} 24. hxg5 {[%clk 0:01:32.1]} 24... Nxf2 {[%clk
0:02:43.2]} 25. Kxf2 {[%clk 0:01:32.4]} 25... gxf5 {[%clk 0:02:42.9]} 26. a3
{[%clk 0:01:23.6]} 26... Kg7 {[%clk 0:02:40.5]} 27. Kf3 {[%clk 0:01:22.1]} 27...
Re8 {[%clk 0:02:37.4]} 28. Rc1 {[%clk 0:01:12.4]} 28... Kg6 {[%clk 0:02:34]} 29.
Rc6 {[%clk 0:01:11]} 29... Kxg5 {[%clk 0:02:25.4]} 30. Rxd6 {[%clk 0:01:10.6]}
30... Re6 {[%clk 0:02:24]} 31. Rd8 {[%clk 0:01:07.9]} 31... Ra5 {[%clk
0:02:10.8]} 32. g3 {[%clk 0:00:58.5]} 32... d3 {[%clk 0:01:52.4]} 33. Nf4 {[%clk
0:00:57.2]} 33... Re1 {[%clk 0:01:42.9]} 34. Rd6 {[%clk 0:00:44.8]} 34... f6
{[%clk 0:01:32.1]} 35. Rxd3 {[%clk 0:00:31]} 35... Rf1+ {[%clk 0:01:24.5]} 36.
Kg2 {[%clk 0:00:25.9]} 36... Rxf4 {[%clk 0:01:23.7]} 37. gxf4+ {[%clk
0:00:25.6]} 37... Kxf4 {[%clk 0:01:24.6]} 38. Rd6 {[%clk 0:00:16.8]} 38... Rb5
{[%clk 0:01:24.9]} 39. b4 {[%clk 0:00:14.5]} 39... Ke5 {[%clk 0:01:25.4]} 40.
Rc6 {[%clk 0:00:14.5]} 40... h5 {[%clk 0:01:22.5]} 41. Kf3 {[%clk 0:00:14.2]}
41... h4 {[%clk 0:01:22.1]} 42. Rc4 {[%clk 0:00:13]} 42... Rd5 {[%clk
0:01:21.9]} 43. a4 {[%clk 0:00:06.4]} 43... Rd3+ {[%clk 0:01:21.5]} 44. Ke2
{[%clk 0:00:05.5]} 44... Rd4 {[%clk 0:01:22.1]} 0-1

[Event "*** SCC Grand Prix: Titled Tuesday Blitz"]
[Site "Chess.com"]
[Date "2020.06.09"]
[Round "9"]
[White "Bhagya_2312"]
[Black "GustavoJuarezF"]
[Result "1-0"]
[WhiteElo "2125"]
[BlackElo "1968"]
[TimeControl "180+1"]
[EndTime "10:45:35 PDT"]
[Termination "Bhagya_2312 won on time"]

1. e4 {[%clk 0:03:00.9]} 1... c5 {[%clk 0:02:59.7]} 2. Nf3 {[%clk 0:03:00.8]}
2... Nc6 {[%clk 0:02:59.4]} 3. d4 {[%clk 0:03:01.5]} 3... cxd4 {[%clk
0:02:59.5]} 4. Nxd4 {[%clk 0:03:02.1]} 4... Nf6 {[%clk 0:02:58.1]} 5. Nc3 {[%clk
0:03:01.9]} 5... e5 {[%clk 0:02:56.6]} 6. Ndb5 {[%clk 0:03:01.9]} 6... d6 {[%clk
0:02:55.6]} 7. Nd5 {[%clk 0:03:01.9]} 7... Nxd5 {[%clk 0:02:54.7]} 8. exd5
{[%clk 0:03:02.2]} 8... Nb8 {[%clk 0:02:54.7]} 9. a4 {[%clk 0:03:01.6]} 9... Be7
{[%clk 0:02:53.8]} 10. Be2 {[%clk 0:03:01.7]} 10... O-O {[%clk 0:02:53]} 11. O-O
{[%clk 0:03:01.6]} 11... a6 {[%clk 0:02:52.7]} 12. Na3 {[%clk 0:03:01.6]} 12...
f5 {[%clk 0:02:52.8]} 13. f4 {[%clk 0:03:00.2]} 13... Nd7 {[%clk 0:02:50.8]} 14.
Kh1 {[%clk 0:02:57.9]} 14... exf4 {[%clk 0:02:46]} 15. Bxf4 {[%clk 0:02:56.9]}
15... Qc7 {[%clk 0:02:45.4]} 16. Nc4 {[%clk 0:02:53.3]} 16... g5 {[%clk
0:02:37.7]} 17. Be3 {[%clk 0:02:50.9]} 17... f4 {[%clk 0:02:36.5]} 18. Bd4
{[%clk 0:02:46.4]} 18... Bf6 {[%clk 0:02:36.1]} 19. a5 {[%clk 0:02:40.8]} 19...
Ne5 {[%clk 0:02:11]} 20. Nb6 {[%clk 0:02:36.2]} 20... Rb8 {[%clk 0:02:09.5]} 21.
c4 {[%clk 0:02:32.1]} 21... Bd7 {[%clk 0:02:08.5]} 22. Rc1 {[%clk 0:02:25.4]}
22... Be8 {[%clk 0:02:05.5]} 23. c5 {[%clk 0:02:19.1]} 23... dxc5 {[%clk
0:02:03.3]} 24. Bxc5 {[%clk 0:02:16.2]} 24... Rf7 {[%clk 0:01:49.5]} 25. d6
{[%clk 0:02:16]} 25... Qd8 {[%clk 0:01:48.8]} 26. Nc4 {[%clk 0:02:04]} 26... Bb5
{[%clk 0:01:37.4]} 27. Nxe5 {[%clk 0:02:02.6]} 27... Bxe5 {[%clk 0:01:32]} 28.
Bxb5 {[%clk 0:01:55.1]} 28... axb5 {[%clk 0:01:30.7]} 29. Qd5 {[%clk 0:01:54.8]}
29... Bf6 {[%clk 0:01:13.5]} 30. Bb6 {[%clk 0:01:48.1]} 30... Qf8 {[%clk
0:01:03.6]} 31. Rc7 {[%clk 0:01:46.1]} 31... Bd8 {[%clk 0:00:59]} 32. Rd7 {[%clk
0:01:19.8]} 32... Bxb6 {[%clk 0:00:50.8]} 33. axb6 {[%clk 0:01:17]} 33... h6
{[%clk 0:00:44.6]} 34. Re1 {[%clk 0:01:14.6]} 34... Re8 {[%clk 0:00:34.3]} 35.
Ree7 {[%clk 0:01:11.2]} 35... Rxe7 {[%clk 0:00:15.5]} 36. dxe7 {[%clk
0:01:09.9]} 36... Qe8 {[%clk 0:00:07.6]} 37. Rd8 {[%clk 0:01:08.2]} 1-0

[Event "*** SCC Grand Prix: Titled Tuesday Blitz"]
[Site "Chess.com"]
[Date "2020.06.09"]
[Round "9"]
[White "Ladislav1969"]
[Black "yamalchess"]
[Result "0-1"]
[WhiteElo "2337"]
[BlackElo "2456"]
[TimeControl "180+1"]
[EndTime "10:45:37 PDT"]
[Termination "yamalchess won by resignation"]

1. e4 {[%clk 0:03:00.9]} 1... e5 {[%clk 0:02:59.4]} 2. Bc4 {[%clk 0:02:58.6]}
2... Nc6 {[%clk 0:02:55.1]} 3. Nc3 {[%clk 0:02:57]} 3... Nf6 {[%clk 0:02:52.2]}
4. d3 {[%clk 0:02:56.7]} 4... Na5 {[%clk 0:02:51.5]} 5. Nge2 {[%clk 0:02:55]}
5... c6 {[%clk 0:02:49]} 6. Bg5 {[%clk 0:02:49.3]} 6... h6 {[%clk 0:02:46.5]} 7.
Bh4 {[%clk 0:02:48.4]} 7... Be7 {[%clk 0:02:46.5]} 8. O-O {[%clk 0:02:38.7]}
8... Nxc4 {[%clk 0:02:26.5]} 9. dxc4 {[%clk 0:02:38]} 9... Nxe4 {[%clk
0:02:25.8]} 10. Bxe7 {[%clk 0:02:14.7]} 10... Nxc3 {[%clk 0:02:25]} 11. Bxd8
{[%clk 0:02:14.4]} 11... Nxd1 {[%clk 0:02:24.9]} 12. Bc7 {[%clk 0:02:08.7]}
12... Nxb2 {[%clk 0:02:23.7]} 13. Bxe5 {[%clk 0:02:07.4]} 13... Nxc4 {[%clk
0:02:23.5]} 14. Bxg7 {[%clk 0:02:03.7]} 14... Rh7 {[%clk 0:02:22.3]} 15. Bf6
{[%clk 0:01:59.9]} 15... d5 {[%clk 0:02:21.7]} 16. Nf4 {[%clk 0:01:45]} 16...
Be6 {[%clk 0:02:21.1]} 17. Rfe1 {[%clk 0:01:30.2]} 17... Kd7 {[%clk 0:02:20.6]}
18. Nd3 {[%clk 0:01:16.4]} 18... Rg8 {[%clk 0:02:13.9]} 19. Nc5+ {[%clk
0:01:08.1]} 19... Kc8 {[%clk 0:02:13]} 20. Nxe6 {[%clk 0:01:04.6]} 20... fxe6
{[%clk 0:02:12.4]} 21. Rxe6 {[%clk 0:01:04.6]} 21... Kd7 {[%clk 0:02:05.6]} 22.
Rae1 {[%clk 0:01:02]} 22... Rg6 {[%clk 0:02:00.7]} 23. Re7+ {[%clk 0:00:55]}
23... Rxe7 {[%clk 0:01:59.5]} 24. Bxe7 {[%clk 0:00:53.1]} 24... b6 {[%clk
0:01:32.9]} 25. f4 {[%clk 0:00:52]} 25... Re6 {[%clk 0:01:29.5]} 26. Rxe6 {[%clk
0:00:49.3]} 26... Kxe6 {[%clk 0:01:30]} 27. Bf8 {[%clk 0:00:49.7]} 27... h5
{[%clk 0:01:29.3]} 28. h3 {[%clk 0:00:45.4]} 28... Kf5 {[%clk 0:01:29.1]} 29.
Bh6 {[%clk 0:00:44.5]} 29... Ne3 {[%clk 0:01:27.9]} 30. c3 {[%clk 0:00:23.8]}
30... Nd1 {[%clk 0:01:23.5]} 31. g3 {[%clk 0:00:20.4]} 31... Nxc3 {[%clk
0:01:22.8]} 32. Kf2 {[%clk 0:00:19.1]} 32... d4 {[%clk 0:01:13.5]} 33. Kf3
{[%clk 0:00:18.8]} 33... d3 {[%clk 0:01:01.8]} 34. g4+ {[%clk 0:00:13.6]} 34...
Kg6 {[%clk 0:01:01.5]} 35. Bg5 {[%clk 0:00:09.1]} 35... d2 {[%clk 0:01:01.1]}
0-1

[Event "*** SCC Grand Prix: Titled Tuesday Blitz"]
[Site "Chess.com"]
[Date "2020.06.09"]
[Round "9"]
[White "MartinMatthiesen"]
[Black "FMalexhdez"]
[Result "0-1"]
[WhiteElo "2352"]
[BlackElo "2142"]
[TimeControl "180+1"]
[EndTime "10:45:40 PDT"]
[Termination "FMalexhdez won by resignation"]

1. d4 {[%clk 0:03:00.9]} 1... Nf6 {[%clk 0:02:58.9]} 2. c4 {[%clk 0:03:00.4]}
2... e6 {[%clk 0:02:59]} 3. Nf3 {[%clk 0:02:59.6]} 3... Bb4+ {[%clk 0:02:57.4]}
4. Bd2 {[%clk 0:02:59.1]} 4... Qe7 {[%clk 0:02:54.8]} 5. g3 {[%clk 0:02:59]}
5... a5 {[%clk 0:02:53.9]} 6. Bg2 {[%clk 0:02:58.1]} 6... d6 {[%clk 0:02:48.4]}
7. O-O {[%clk 0:02:47.3]} 7... Nbd7 {[%clk 0:02:45.6]} 8. Nc3 {[%clk 0:02:43.9]}
8... O-O {[%clk 0:02:38.3]} 9. Nb5 {[%clk 0:02:31.9]} 9... Nb6 {[%clk 0:02:16]}
10. Rc1 {[%clk 0:02:24.8]} 10... e5 {[%clk 0:01:59.8]} 11. dxe5 {[%clk
0:02:18.4]} 11... dxe5 {[%clk 0:01:58.6]} 12. Qb3 {[%clk 0:02:08.9]} 12... c6
{[%clk 0:01:45.1]} 13. Nc3 {[%clk 0:01:39.2]} 13... e4 {[%clk 0:01:32]} 14. Ng5
{[%clk 0:01:35.2]} 14... a4 {[%clk 0:01:28]} 15. Qc2 {[%clk 0:01:34.8]} 15...
Bf5 {[%clk 0:01:14.5]} 16. Nd1 {[%clk 0:00:59.8]} 16... Bxd2 {[%clk 0:00:56.4]}
17. Qxd2 {[%clk 0:00:59.3]} 17... Rad8 {[%clk 0:00:49.7]} 18. Qe3 {[%clk
0:00:56.5]} 18... h6 {[%clk 0:00:39.9]} 19. Nxf7 {[%clk 0:00:52.2]} 19... Rxf7
{[%clk 0:00:37]} 20. Qxb6 {[%clk 0:00:52]} 20... Rd2 {[%clk 0:00:32.2]} 21. Ne3
{[%clk 0:00:39.7]} 21... Bc8 {[%clk 0:00:27.1]} 22. Rc2 {[%clk 0:00:38.9]} 22...
Rxc2 {[%clk 0:00:24.2]} 23. Nxc2 {[%clk 0:00:38.5]} 23... Ng4 {[%clk 0:00:24.2]}
24. Ne3 {[%clk 0:00:37]} 24... Ne5 {[%clk 0:00:21.9]} 25. Rd1 {[%clk 0:00:35.5]}
25... Rf8 {[%clk 0:00:20.8]} 26. Qd4 {[%clk 0:00:29.9]} 26... Qf6 {[%clk
0:00:18.9]} 27. Rf1 {[%clk 0:00:24.5]} 27... Nf3+ {[%clk 0:00:17.6]} 0-1